bitfinex/quotes_SOLUSD_20240726
["timestamp","ask_amount","ask_price","bid_price","bid_amount"]
[1722023502375,45.0,182.75,182.72,19.1543]
[1722023503001,45.0,182.75,182.72,13.6816]
[1722023503297,45.0,182.75,182.73,5.4725]
[1722023504297,45.0,182.75,182.72,19.1543]
[1722023504488,45.0,182.75,182.72,18.1543]
[1722023504875,45.0,182.75,182.73,5.4724]
[1722023505205,45.0,182.75,182.74,5.4722]
[1722023505375,15.2315,182.81,182.72,27.3634]
[1722023505573,15.2315,182.81,182.8,5.4704]
[1722023506708,15.2315,182.81,182.79,5.4707]
[1722023506887,15.68382762,182.81,182.76,5.4716]
[1722023507487,15.68382762,182.81,182.77,5.4713]
[1722023507694,45.0,182.8,182.77,5.4713]
[1722023508104,45.0,182.8,182.79,5.4707]
[1722023508410,15.2315,182.81,182.8,5.4704]
[1722023508985,49.19142762,182.86,182.8,5.4704]
[1722023509191,49.19142762,182.86,182.81,5.4701]
[1722023509403,0.45232762,182.85,182.82,5.4698]
[1722023509595,32.82,182.84,182.8,13.6755]
[1722023510111,0.45232762,182.83,182.8,13.6755]
[1722023510415,32.82,182.84,182.8,13.6755]
[1722023510936,20.0,182.85,182.8,13.6755]
[1722023510937,77.82,182.83,182.8,19.1459]
[1722023511086,77.82,182.83,182.78,5.471]
[1722023511287,77.82,182.83,182.77,5.4713]
[1722023511288,97.82,182.83,182.77,5.4713]
[1722023511680,0.45232762,182.82,182.77,5.4713]
[1722023512100,0.45232762,182.82,182.78,5.471]
[1722023512298,0.45232762,182.82,182.76,13.6784]
[1722023513003,98.27232762,182.83,182.78,5.4707]
[1722023513521,97.82,182.83,182.78,5.4707]
[1722023513893,77.82,182.83,182.79,5.4707]
[1722023514495,77.82,182.83,182.78,19.148]
[1722023515229,45.0,182.83,182.81,13.6752]
[1722023515520,68.7391,182.86,182.81,13.6752]
[1722023515696,0.45232762,182.85,182.81,13.6752]
[1722023515896,0.45232762,182.85,182.81,19.1453]
[1722023516090,69.19142762,182.86,182.78,13.6775]
[1722023516302,69.19142762,182.86,182.8,5.4703]
[1722023516705,77.82,182.85,182.8,5.4704]
[1722023516920,77.82,182.85,182.81,5.4701]
[1722023517099,32.82,182.85,182.82,5.4697]
[1722023517604,32.82,182.85,182.81,13.6753]
[1722023517813,32.82,182.85,182.8,5.4704]
[1722023518321,45.0,182.84,182.8,5.4704]
[1722023519401,97.82,182.84,182.78,13.6774]
[1722023519805,97.82,182.84,182.79,5.4707]
[1722023520431,97.82,182.84,182.78,19.1484]
[1722023520605,77.82,182.84,182.79,5.4707]
[1722023521133,97.82,182.84,182.78,13.6774]
[1722023521712,77.82,182.84,182.8,5.4704]
[1722023521913,77.82,182.84,182.82,5.4697]
[1722023522112,16.37142762,182.86,182.81,13.6753]
[1722023522113,15.9191,182.86,182.81,13.6753]
[1722023522514,0.45232762,182.92,182.84,13.673]
[1722023522515,15.392,182.91,182.84,13.673]
[1722023523122,15.392,182.91,182.89,5.4677]
[1722023523309,48.212,182.91,182.88,5.468]
[1722023523624,48.212,182.91,182.86,19.1395]
[1722023524132,48.212,182.91,182.87,5.4683]
[1722023524327,48.212,182.91,182.86,13.6709]
[1722023524530,48.212,182.91,182.87,5.4683]
[1722023525537,48.212,182.91,182.86,13.6709]
[1722023525538,0.45232762,182.9,182.86,19.1393]
[1722023525703,45.45232762,182.9,182.86,19.1393]
[1722023525901,15.392,182.91,182.88,13.6694]
[1722023526497,15.392,182.91,182.89,5.4677]
[1722023526714,32.82,182.94,182.91,5.467]
[1722023526923,32.82,182.94,182.92,5.4666]
[1722023527134,32.82,182.94,182.91,5.4671]
[1722023527305,32.82,182.94,182.9,19.1354]
[1722023528030,32.82,182.94,182.87,13.6707]
[1722023528222,32.82,182.94,182.87,19.1387]
[1722023528524,32.82,182.94,182.88,5.4679]
[1722023528525,52.82,182.94,182.88,5.4679]
[1722023528723,0.45232762,182.93,182.88,5.4679]
[1722023528925,78.27232762,182.93,182.88,5.4679]
[1722023529122,0.45232762,182.92,182.88,5.4679]
[1722023529308,32.82,182.91,182.87,13.6707]
[1722023529621,45.0,182.9,182.88,5.468]
[1722023530043,45.0,182.9,182.87,19.1389]
[1722023530224,45.0,182.9,182.87,13.6707]
[1722023530639,45.0,182.9,182.88,5.468]
[1722023531016,45.0,182.9,182.89,5.4677]
[1722023535039,16.81122762,182.95,182.85,7.20872646]
[1722023535040,16.3589,182.95,182.85,7.20872646]
[1722023535210,16.3589,182.95,182.93,5.4662]
[1722023535417,16.3589,182.95,182.92,19.1334]
[1722023535820,16.3589,182.95,182.92,13.6666]
[1722023536034,32.82,182.97,182.93,5.4665]
[1722023536238,22.5623,183.0,182.96,5.4655]
[1722023536424,23.01462762,183.0,182.96,5.4655]
[1722023537148,16.3444,183.0,182.97,5.4653]
[1722023537516,45.0,182.99,182.95,13.6648]
[1722023538030,45.0,182.99,182.96,5.4655]
[1722023538235,0.45232762,183.02,183.0,5.4644]
[1722023538236,32.82,183.02,183.0,5.4644]
[1722023538445,32.82,183.02,182.98,13.6625]
[1722023539221,32.82,183.04,183.0,5.4644]
[1722023540226,16.1107,183.05,183.02,5.4638]
[1722023540534,16.1107,183.05,183.01,19.1245]
[1722023540736,48.9307,183.05,183.01,13.6604]
[1722023541047,68.9307,183.05,182.99,5.4646]
[1722023541245,48.9307,183.05,182.98,13.6625]
[1722023541419,48.9307,183.05,183.01,5.4641]
[1722023541625,0.45232762,183.04,182.98,13.6625]
[1722023541837,0.45232762,183.04,182.98,19.1273]
[1722023542024,45.0,183.04,182.99,5.4646]
[1722023542236,0.45232762,183.03,182.99,5.4646]
[1722023542858,0.45232762,183.03,183.01,13.66]
[1722023543150,0.45232762,183.03,183.02,5.4638]
[1722023543347,16.1107,183.05,183.02,5.4638]
[1722023543554,16.1107,183.05,183.01,13.66]
[1722023543849,16.1107,183.05,183.02,5.4638]
[1722023544018,45.0,183.04,182.97,13.6628]
[1722023544719,78.27232762,183.04,182.99,5.4647]
[1722023544928,77.82,183.04,182.99,5.4647]
[1722023545126,77.82,183.04,183.0,5.4643]
[1722023545723,78.27232762,183.04,182.99,5.4647]
[1722023546130,77.82,183.04,182.99,5.4647]
[1722023546322,78.27232762,183.04,182.99,5.4647]
[1722023547052,78.27232762,183.04,182.98,5.465]
[1722023547350,32.82,183.02,182.98,5.4649]
[1722023547532,45.0,183.01,182.98,5.4649]
[1722023547728,45.0,183.01,182.97,19.1281]
[1722023548355,0.45232762,183.0,182.96,5.4656]
[1722023549037,0.45232762,183.0,182.97,5.4653]
[1722023551155,0.45232762,183.0,182.98,5.465]
[1722023551328,78.27232762,183.01,182.98,5.465]
[1722023551949,77.82,183.01,182.98,5.465]
[1722023552852,45.0,183.01,183.0,5.4644]
[1722023554749,16.1107,183.05,183.0,13.6606]
[1722023554940,16.1107,183.05,183.02,5.4638]
[1722023555751,16.1107,183.05,183.0,13.6606]
[1722023555752,16.1107,183.05,183.01,5.4641]
[1722023555943,48.9307,183.05,182.97,13.6631]
[1722023556256,49.38302762,183.05,182.97,13.6631]
[1722023556762,52.82,183.03,182.97,19.1283]
[1722023557052,45.0,183.02,182.97,19.1283]
[1722023557259,45.0,183.02,182.97,13.6631]
[1722023557633,45.0,183.02,182.99,5.4645]
[1722023558555,45.0,183.02,182.97,13.6631]
[1722023559052,77.82,183.02,182.97,19.1283]
[1722023560561,83.2839,183.02,182.97,13.6631]
[1722023561061,53.27232762,183.01,182.97,13.6631]
[1722023561267,77.82,183.0,182.94,5.4661]
[1722023561448,53.27232762,182.99,182.93,13.6661]
[1722023561646,93.66102762,182.98,182.93,13.6661]
[1722023561865,116.95102762,182.98,182.93,13.6661]
[1722023562046,116.4987,182.98,182.93,19.1326]
[1722023562246,0.45232762,182.97,182.93,19.1326]
[1722023562550,93.2087,182.98,182.93,13.6661]
[1722023562756,93.2087,182.98,182.94,5.4662]
[1722023562955,113.66102762,182.98,182.93,19.1326]
[1722023563254,93.2087,182.98,182.95,5.4657]
[1722023564268,93.2087,182.98,182.93,13.6661]
[1722023564269,93.2087,182.98,182.94,5.4662]
[1722023564652,93.2087,182.98,182.93,19.1326]
[1722023565177,113.2087,182.98,182.93,13.6661]
[1722023565781,113.2087,182.98,182.92,5.4667]
[1722023565782,0.45232762,182.97,182.92,5.4667]
[1722023566065,0.45232762,182.97,182.93,5.4665]
[1722023566266,136.4987,182.98,182.93,5.4665]
[1722023566462,93.2087,182.98,182.94,5.4662]
[1722023566850,93.2087,182.98,182.93,13.6664]
[1722023567069,16.5224,183.02,183.0,5.4643]
[1722023567277,16.5224,183.02,183.0,5.4644]
[1722023567644,16.5224,183.02,183.01,5.4641]
[1722023567841,59.8124,183.07,183.01,5.4641]
[1722023568043,92.6324,183.07,183.01,5.4641]
[1722023568441,93.08472762,183.07,183.01,5.4641]
[1722023568967,38.2828,183.06,183.0,13.6605]
[1722023569172,38.73512762,183.06,183.0,13.6605]
[1722023570359,38.73512762,183.06,183.0,19.1249]
[1722023570360,45.0,183.05,183.0,19.1249]
[1722023571368,32.82,183.03,182.97,5.4651]
[1722023571557,77.82,183.02,182.97,5.4651]
[1722023571756,32.82,183.02,182.97,5.4651]
[1722023572071,45.0,183.01,182.98,13.662]
[1722023572259,45.0,183.01,182.99,5.4647]
[1722023572678,45.0,183.01,182.98,19.127]
[1722023573179,45.0,183.01,182.98,13.662]
[1722023573392,45.0,183.02,182.98,13.662]
[1722023574177,45.0,183.02,182.98,19.1269]
[1722023574356,45.0,183.02,182.98,13.662]
[1722023574980,77.82,183.03,182.98,19.127]
[1722023575172,77.82,183.03,182.98,13.662]
[1722023575173,52.82,183.02,182.98,13.662]
[1722023575358,77.82,183.01,182.95,19.1304]
[1722023575550,0.45232762,183.0,182.96,5.4656]
[1722023575751,0.45232762,183.0,182.97,5.4653]
[1722023576575,0.45232762,182.99,182.95,13.6646]
[1722023576755,15.652,182.99,182.92,13.667]
[1722023576961,32.82,182.96,182.9,5.4674]
[1722023577164,0.45232762,182.95,182.9,5.4674]
[1722023577370,32.82,182.94,182.91,5.4669]
[1722023577561,45.0,182.95,182.91,5.4669]
[1722023577754,77.88,182.96,182.91,5.4669]
[1722023578373,52.88,182.95,182.9,5.4674]
[1722023578582,45.0,182.94,182.9,5.4674]
[1722023579249,45.0,182.94,182.9,5.4673]
[1722023579450,45.0,182.94,182.91,5.4671]
[1722023579881,45.0,182.94,182.92,5.4667]
[1722023580256,32.88,182.98,182.95,5.4659]
[1722023580475,15.652,182.99,182.89,1.09327538]
[1722023580671,15.528,183.04,182.9,17.72814278]
[1722023580901,15.528,183.04,183.0,5.4644]
[1722023581204,15.528,183.04,183.01,5.4641]
[1722023581499,32.88,183.07,183.01,19.1244]
[1722023582490,52.88,183.07,183.01,19.1244]
[1722023582697,77.88,183.06,182.99,5.4645]
[1722023583497,77.88,183.06,182.97,13.6627]
[1722023583498,77.88,183.06,183.0,5.4643]
[1722023584568,83.3427,183.06,182.98,5.4648]
[1722023584760,83.3427,183.06,182.99,5.4647]
[1722023585758,83.3427,183.06,182.98,5.465]
[1722023585759,32.88,183.04,182.98,5.465]
[1722023585983,45.0,183.03,182.98,5.465]
[1722023586786,45.0,183.03,182.97,19.128]
[1722023586983,0.45232762,183.02,182.97,19.128]
[1722023587586,97.88,183.03,182.97,19.128]
[1722023587787,77.88,183.03,182.97,19.128]
[1722023588268,97.88,183.03,182.97,19.128]
[1722023588788,77.88,183.03,182.98,5.465]
[1722023589291,77.88,183.03,182.97,13.6627]
[1722023589663,45.0,183.03,182.99,13.6614]
[1722023589877,45.0,183.03,183.01,5.4639]
[1722023591009,77.88,183.03,182.98,5.4648]
[1722023591212,52.88,183.02,182.96,13.664]
[1722023591378,45.0,183.01,182.97,5.4653]
[1722023591583,45.0,183.01,182.93,27.3328]
[1722023591584,77.88,183.01,182.93,40.999]
[1722023591888,78.33232762,183.01,182.95,5.4658]
[1722023592297,78.33232762,183.01,182.93,27.3328]
[1722023592610,77.88,183.01,182.98,5.465]
[1722023592789,45.0,183.01,183.0,5.4644]
[1722023593502,45.0,183.01,182.98,13.6621]
[1722023593704,45.0,183.02,182.99,5.4646]
[1722023593902,45.0,183.03,182.98,13.6621]
[1722023594102,32.88,183.04,183.0,5.4642]
[1722023594301,52.88,183.04,182.98,19.1269]
[1722023594515,52.88,183.04,182.94,1.09306623]
[1722023594689,32.88,183.01,182.95,5.4657]
[1722023594888,0.45232762,183.0,182.96,5.4656]
[1722023595324,45.45232762,183.0,182.96,5.4656]
[1722023595497,45.0,183.0,182.96,13.6635]
[1722023595829,45.0,183.0,182.97,5.465]
[1722023596496,45.0,183.0,182.96,13.6635]
[1722023596903,45.0,183.0,182.98,5.465]
[1722023597418,45.0,183.0,182.97,5.4653]
[1722023598218,0.45232762,182.99,182.96,13.6635]
[1722023598420,93.4725,183.0,182.96,13.6635]
[1722023598628,93.4725,183.0,182.96,19.1291]
[1722023598801,93.4725,183.0,182.96,13.6635]
[1722023599132,93.4725,183.0,182.95,5.4659]
[1722023599621,52.88,182.99,182.95,5.4659]
[1722023599799,45.0,182.98,182.95,5.4659]
[1722023600319,45.0,182.98,182.93,13.6661]
[1722023600320,77.88,182.98,182.94,5.4662]
[1722023600500,53.33232762,182.97,182.93,13.6661]
[1722023600710,45.0,182.96,182.93,13.6661]
[1722023600899,52.88,182.95,182.91,5.4671]
[1722023601124,77.88,182.94,182.91,5.4671]
[1722023601303,0.45232762,182.93,182.9,19.136]
[1722023601697,77.88,182.94,182.91,5.4671]
[1722023602227,77.88,182.94,182.9,19.1359]
[1722023602408,77.88,182.94,182.91,5.467]
[1722023602597,77.88,182.94,182.9,13.6686]
[1722023602817,0.45232762,182.93,182.91,5.467]
[1722023603129,0.45232762,182.93,182.91,5.7961]
[1722023603307,77.88,182.94,182.91,5.7961]
[1722023603825,53.33232762,182.93,182.91,0.3291]
[1722023604043,45.45232762,182.92,182.91,0.3291]
[1722023604917,94.74142762,182.92,182.91,0.3291]
[1722023605111,32.88,182.9,182.86,5.4686]
[1722023605343,45.45232762,182.89,182.86,5.4686]
[1722023605907,98.33232762,182.89,182.85,5.4689]
[1722023606823,98.33232762,182.89,182.84,19.1422]
[1722023606824,97.88,182.89,182.84,19.1422]
[1722023607531,77.88,182.89,182.85,5.4689]
[1722023607739,97.88,182.89,182.85,5.4689]
[1722023608440,0.45232762,182.88,182.84,13.673]
[1722023608614,0.45232762,182.88,182.84,19.1421]
[1722023608808,97.88,182.89,182.85,5.4689]
[1722023609434,97.88,182.89,182.84,19.1422]
[1722023609631,98.33232762,182.89,182.84,19.1422]
[1722023609936,56.17,182.87,182.84,13.673]
[1722023610119,45.45232762,182.86,182.84,13.673]
[1722023610313,0.45232762,182.85,182.84,13.673]
[1722023610726,0.45232762,182.85,182.84,19.1422]
[1722023611236,55.301,182.85,182.74,27.3611]
[1722023611543,76.17,182.81,182.65,51.19645483]
[1722023611836,0.45232762,182.8,182.65,51.19645483]
[1722023612029,32.88,182.79,182.65,51.19645483]
[1722023612338,32.88,182.79,182.75,5.4717]
[1722023612339,77.88,182.78,182.75,5.4717]
[1722023613025,77.88,182.78,182.74,13.6803]
[1722023613346,77.88,182.78,182.74,19.1522]
[1722023613657,20.0,182.77,182.74,19.1522]
[1722023613937,77.88,182.76,182.74,19.1522]
[1722023614913,77.88,182.76,182.74,13.6803]
[1722023615832,52.88,182.75,182.7,13.6829]
[1722023616013,45.0,182.74,182.7,13.6829]
[1722023616215,45.0,182.74,182.73,5.4725]
[1722023620319,45.0,182.74,182.72,13.6814]
[1722023621745,45.0,182.74,182.72,19.1542]
[1722023624825,45.0,182.74,182.73,5.4725]
[1722023625626,32.88,182.8,182.75,5.4718]
[1722023626732,32.88,182.8,182.76,5.4714]
[1722023627529,52.88,182.8,182.74,13.6801]
[1722023627733,52.88,182.8,182.74,19.1522]
[1722023627930,32.88,182.8,182.75,5.4718]
[1722023628428,32.88,182.8,182.76,5.4715]
[1722023629462,32.88,182.8,182.75,5.4718]
[1722023629758,45.0,182.79,182.75,5.4718]
[1722023630642,77.88,182.79,182.74,13.6801]
[1722023631038,78.33232762,182.79,182.74,13.6801]
[1722023631341,77.88,182.79,182.74,13.6801]
[1722023632659,77.88,182.79,182.74,19.1523]
[1722023636558,77.88,182.79,182.75,5.4719]
[1722023637654,83.3507,182.79,182.71,13.6828]
[1722023637835,32.88,182.77,182.72,5.4727]
[1722023638033,97.88,182.76,182.72,5.4727]
[1722023639436,97.88,182.76,182.71,19.1559]
[1722023639860,97.88,182.76,182.72,5.4726]
[1722023640344,77.88,182.76,182.73,5.4724]
[1722023640750,77.88,182.76,182.71,19.1557]
[1722023640950,77.88,182.76,182.72,5.4726]
[1722023641335,97.88,182.76,182.72,5.4726]
[1722023641536,97.88,182.76,182.71,19.1559]
[1722023641967,56.17,182.75,182.71,19.1559]
[1722023642146,77.88,182.74,182.71,13.6828]
[1722023642338,77.88,182.74,182.7,5.4733]
[1722023642543,97.88,182.74,182.7,5.4733]
[1722023644058,77.88,182.74,182.7,5.4733]
[1722023644263,77.88,182.74,182.69,5.4737]
[1722023644653,77.88,182.74,182.7,5.4734]
[1722023645536,97.88,182.74,182.7,5.4734]
[1722023645733,97.88,182.74,182.69,5.4737]
[1722023645948,97.88,182.74,182.7,5.4734]
[1722023646636,97.88,182.74,182.68,19.1589]
[1722023647171,11.68,182.69,182.68,13.685]
[1722023647345,56.68,182.69,182.68,13.685]
[1722023648251,56.68,182.69,182.66,5.4746]
[1722023648573,11.68,182.67,182.66,5.4746]
[1722023648955,45.0,182.67,182.66,5.4746]
[1722023649266,52.88,182.74,182.67,13.6853]
[1722023649267,11.68,182.7,182.67,13.6853]
[1722023649470,11.68,182.69,182.68,5.474]
[1722023649660,11.68,182.7,182.69,5.4735]
[1722023649866,11.68,182.71,182.7,19.1564]
[1722023650384,11.68,182.72,182.7,13.683]
[1722023650544,12.13232762,182.71,182.7,19.1564]
[1722023650750,11.68,182.71,182.7,19.1564]
[1722023651976,56.68,182.71,182.7,19.1564]
[1722023652553,56.68,182.71,182.68,5.4737]
[1722023652770,11.68,182.69,182.68,5.4737]
[1722023653078,56.68,182.69,182.67,5.4742]
[1722023653257,11.68,182.68,182.67,5.4742]
[1722023653459,56.68,182.68,182.63,13.6888]
[1722023653661,97.88,182.7,182.64,5.4752]
[1722023653873,26.659,182.78,182.69,5.4737]
[1722023653874,32.88,182.74,182.69,5.4737]
[1722023654065,0.45232762,182.73,182.68,13.6851]
[1722023654458,11.68,182.69,182.66,5.4744]
[1722023654669,32.88,182.71,182.66,5.4744]
[1722023654856,11.68,182.67,182.66,5.4744]
[1722023655060,32.88,182.73,182.69,5.4736]
[1722023655382,45.0,182.72,182.7,5.4733]
[1722023656165,20.0,182.76,182.75,5.4719]
[1722023656355,32.88,182.79,182.76,5.4716]
[1722023656577,32.88,182.79,182.73,13.6813]
[1722023656769,32.88,182.79,182.77,5.4713]
[1722023657958,77.88,182.78,182.72,13.6819]
[1722023658454,77.88,182.78,182.75,5.4718]
[1722023658675,45.0,182.78,182.76,5.4715]
[1722023658884,45.0,182.79,182.76,5.4715]
[1722023660176,16.4016,182.82,182.78,5.471]
[1722023660472,56.23,182.83,182.79,5.4707]
[1722023661685,92.6083,182.86,182.8,13.676]
[1722023662371,43.35,182.89,182.84,5.4692]
[1722023662567,76.23,182.89,182.84,5.4692]
[1722023662961,52.88,182.87,182.82,13.6739]
[1722023663767,77.88,182.86,182.82,13.6739]
[1722023664164,77.88,182.86,182.8,5.4702]
[1722023664671,77.88,182.86,182.8,13.6754]
[1722023664867,77.88,182.86,182.81,5.4701]
[1722023665184,0.45232762,182.85,182.8,13.6754]
[1722023665481,52.88,182.85,182.76,13.6785]
[1722023665664,52.88,182.85,182.78,5.471]
[1722023665665,32.88,182.83,182.78,5.471]
[1722023665876,32.88,182.83,182.76,13.6785]
[1722023665877,77.88,182.82,182.76,13.6785]
[1722023666261,77.88,182.82,182.79,5.4705]
[1722023666467,77.88,182.82,182.78,5.471]
[1722023666661,45.0,182.82,182.79,5.4706]
[1722023666857,45.0,182.83,182.79,5.4706]
[1722023667383,45.45232762,182.83,182.78,5.471]
[1722023667598,45.45232762,182.83,182.76,13.6785]
[1722023667599,32.88,182.81,182.76,13.6785]
[1722023667975,45.0,182.8,182.76,19.1499]
[1722023668297,45.0,182.8,182.77,5.471]
[1722023669160,45.0,182.8,182.78,5.471]
[1722023669379,45.0,182.8,182.77,5.4713]
[1722023669962,45.0,182.8,182.79,5.4707]
[1722023670165,23.35,182.83,182.79,5.4707]
[1722023670166,23.80232762,182.83,182.79,13.6765]
[1722023670391,32.88,182.82,182.79,13.6765]
[1722023671377,45.0,182.81,182.79,13.6765]
[1722023671780,45.0,182.81,182.79,19.1472]
[1722023672304,32.88,182.82,182.8,5.4704]
[1722023672490,0.45232762,182.81,182.8,5.4704]
[1722023673495,0.45232762,182.82,182.79,19.1472]
[1722023674190,45.45232762,182.82,182.8,5.4704]
[1722023674574,77.88,182.82,182.79,13.6765]
[1722023675091,77.88,182.82,182.76,13.6789]
[1722023675389,77.88,182.82,182.78,5.471]
[1722023675988,77.88,182.82,182.79,5.4706]
[1722023676180,77.88,182.82,182.78,5.4709]
[1722023676772,78.33232762,182.82,182.79,5.4707]
[1722023676973,77.88,182.82,182.77,5.4711]
[1722023677273,11.66,182.78,182.76,19.1505]
[1722023677577,57.11232762,182.77,182.76,19.1505]
[1722023677780,56.66,182.77,182.76,19.1505]
[1722023679105,45.0,182.77,182.76,19.1505]
[1722023679401,76.66232762,182.82,182.76,13.6789]
[1722023679402,76.21,182.82,182.76,13.6789]
[1722023679590,45.0,182.81,182.77,5.4711]
[1722023679897,45.0,182.81,182.78,5.4709]
[1722023680301,45.0,182.81,182.76,13.6789]
[1722023680302,0.45232762,182.8,182.76,13.6789]
[1722023680499,77.88,182.81,182.76,13.6789]
[1722023681025,0.45232762,182.81,182.78,5.471]
[1722023681314,0.45232762,182.81,182.76,19.1502]
[1722023681986,0.45232762,182.81,182.76,13.6789]
[1722023682178,56.21,182.82,182.76,19.1503]
[1722023682382,77.88,182.81,182.76,19.1503]
[1722023682689,77.88,182.81,182.77,5.4712]
[1722023682994,78.33232762,182.81,182.76,19.1505]
[1722023683512,77.88,182.81,182.76,19.1505]
[1722023684222,77.88,182.81,182.77,5.4712]
[1722023684890,45.0,182.81,182.78,5.4707]
[1722023685084,52.88,182.84,182.78,5.4707]
[1722023685284,0.45232762,182.83,182.79,5.4707]
[1722023685591,21.3087,182.87,182.81,5.47]
[1722023685798,21.76102762,182.87,182.81,5.47]
[1722023685998,54.64102762,182.87,182.81,5.47]
[1722023686201,38.3487,182.86,182.79,5.4706]
[1722023686401,0.45232762,182.85,182.79,5.4706]
[1722023686726,38.3487,182.86,182.8,5.4703]
[1722023687309,45.45232762,182.85,182.8,5.4703]
[1722023687613,45.45232762,182.85,182.79,5.4707]
[1722023687820,32.88,182.83,182.78,13.6771]
[1722023687987,45.45232762,182.82,182.78,13.6771]
[1722023688309,45.0,182.82,182.78,19.148]
[1722023689495,0.45232762,182.81,182.78,19.148]
[1722023689711,45.0,182.82,182.79,5.4707]
[1722023690199,45.0,182.82,182.78,19.1481]
[1722023690617,45.45232762,182.82,182.78,19.1481]
[1722023691134,45.0,182.82,182.78,19.1481]
[1722023692392,77.88,182.82,182.78,13.6771]
[1722023692615,121.66232762,182.82,182.76,5.4716]
[1722023693327,121.66232762,182.82,182.77,5.4713]
[1722023694509,121.21,182.82,182.77,5.4713]
[1722023694935,101.21,182.82,182.78,5.471]
[1722023695122,101.21,182.82,182.79,5.4707]
[1722023695329,77.88,182.82,182.79,5.4707]
[1722023696031,77.88,182.82,182.78,19.148]
[1722023696704,77.88,182.82,182.79,5.4706]
[1722023697420,45.0,182.82,182.78,13.6771]
[1722023697624,45.0,182.82,182.8,5.4703]
[1722023698514,45.0,182.82,182.79,5.4707]
[1722023699416,0.45232762,182.81,182.78,13.6771]
[1722023699832,45.0,182.82,182.78,13.6771]
[1722023700038,5.4693,182.84,182.78,13.6771]
[1722023700039,45.0,182.83,182.78,13.6771]
[1722023700634,45.0,182.83,182.78,19.148]
[1722023700840,45.0,182.83,182.78,13.6771]
[1722023701036,0.45232762,182.82,182.78,13.6771]
[1722023701341,11.66,182.8,182.78,13.6771]
[1722023701519,11.66,182.79,182.77,5.4713]
[1722023701721,11.66,182.78,182.76,5.4715]
[1722023701916,0.45232762,182.82,182.75,19.1513]
[1722023701917,11.66,182.77,182.75,19.1513]
[1722023702128,11.66,182.76,182.75,19.1513]
[1722023702325,11.66,182.78,182.77,5.4713]
[1722023702643,45.0,182.84,182.78,5.4708]
[1722023702644,11.66,182.79,182.78,5.4708]
[1722023702838,45.0,182.79,182.77,13.6777]
[1722023703231,11.66,182.8,182.77,13.6777]
[1722023703446,11.66,182.8,182.78,5.471]
[1722023703630,11.66,182.79,182.78,5.471]
[1722023703940,11.66,182.81,182.79,5.4705]
[1722023704308,11.66,182.81,182.77,19.1488]
[1722023704538,11.66,182.8,182.77,19.1488]
[1722023704841,11.66,182.8,182.78,5.4709]
[1722023705046,11.66,182.79,182.78,5.4709]
[1722023705219,11.66,182.79,182.77,13.6777]
[1722023705414,11.66,182.78,182.77,13.6777]
[1722023705920,11.66,182.78,182.77,19.149]